bitfinex/quotes_ETHUSD_20241106
["timestamp","ask_amount","ask_price","bid_price","bid_amount"]
[1730862003591,0.7931,2569.5,2568.2,3.89364]
[1730862003778,6.95156084,2568.8,2568.2,3.89364]
[1730862003990,6.95156084,2568.8,2568.2,4.30684266]
[1730862004206,6.75050085,2568.8,2568.3,0.41320266]
[1730862004381,6.75050085,2568.8,2568.4,0.07785481]
[1730862004588,6.75050085,2568.8,2568.0,38.89402]
[1730862004785,6.75050085,2568.8,2568.3,0.41320266]
[1730862005033,6.75050085,2568.8,2568.4,0.43068627]
[1730862005528,6.95156084,2569.3,2568.7,3.89287]
[1730862005834,6.95156084,2569.3,2569.0,3.89256]
[1730862006009,0.03868978,2569.8,2569.1,38.0]
[1730862006213,7.74466084,2569.9,2569.1,38.0]
[1730862006992,7.74466084,2569.9,2569.2,0.30151509]
[1730862007193,0.7931,2569.9,2569.3,3.96981742]
[1730862007389,5.457465,2570.8,2569.0,0.47099771]
[1730862007390,0.7931,2570.3,2569.7,3.89139]
[1730862007589,0.7931,2570.3,2569.5,0.55]
[1730862007590,0.7931,2570.8,2570.1,3.0]
[1730862007786,1.557333,2571.3,2570.1,3.0]
[1730862007787,0.03868978,2571.2,2570.3,3.0]
[1730862008029,0.03868978,2571.3,2570.4,0.30153518]
[1730862008359,0.03868978,2571.3,2570.4,1.08868559]
[1730862008647,0.03868978,2571.3,2570.6,3.0]
[1730862008852,6.99025062,2571.4,2570.7,0.30153518]
[1730862009151,6.95156084,2571.9,2570.8,0.7899]
[1730862009351,5.454587,2572.2,2570.8,0.7899]
[1730862009352,0.03868978,2571.8,2570.8,0.2399]
[1730862009595,0.03868978,2571.8,2570.8,0.30222817]
[1730862009709,6.94036095,2571.6,2570.8,0.30222817]
[1730862010055,6.94036095,2571.6,2570.7,0.30222817]
[1730862010405,0.03868978,2571.5,2570.7,0.30222817]
[1730862010704,0.83178978,2571.5,2570.7,3.30222817]
[1730862010904,4.72056978,2571.5,2570.8,0.30222817]
[1730862011149,0.83178978,2571.5,2570.8,0.30222817]
[1730862011354,0.77821507,2571.4,2570.4,4.19260817]
[1730862011506,0.83178978,2571.5,2570.5,0.30222817]
[1730862011704,0.7931,2571.5,2570.9,3.0]
[1730862011940,0.7931,2571.9,2571.2,3.0]
[1730862012176,0.7931,2571.9,2571.3,0.60222817]
[1730862012582,0.7931,2571.9,2571.4,0.30222817]
[1730862012971,0.03868978,2571.8,2571.2,0.30222817]
[1730862013194,0.03868978,2571.8,2570.9,0.30222817]
[1730862013365,0.03868978,2571.8,2571.0,0.30222817]
[1730862013561,0.03868978,2571.8,2570.8,3.0]
[1730862013562,0.7931,2571.9,2571.1,0.30222817]
[1730862013750,0.7931,2571.9,2571.2,0.30222817]
[1730862013950,0.03868978,2571.8,2571.0,0.99121017]
[1730862014203,0.03868978,2571.8,2571.1,0.30222817]
[1730862014380,0.7931,2571.9,2571.2,0.30222817]
[1730862014551,0.7931,2571.9,2571.3,0.30222817]
[1730862014752,0.03868978,2571.8,2571.0,0.30222817]
[1730862014985,0.7931,2571.9,2571.1,0.30222817]
[1730862014986,0.83178978,2571.9,2571.1,0.30222817]
[1730862015152,0.83178978,2571.9,2571.2,0.30222817]
[1730862015349,0.7931,2571.9,2571.3,3.0]
[1730862015553,0.7931,2571.9,2571.4,0.99114817]
[1730862016293,0.7931,2572.2,2571.4,0.30222817]
[1730862016497,0.03868978,2572.1,2571.4,0.30222817]
[1730862016697,3.92667978,2572.1,2571.3,0.2399]
[1730862016997,0.86074998,2572.0,2571.1,0.30222817]
[1730862017198,0.799,2571.7,2570.8,0.30222817]
[1730862017356,3.92736978,2571.6,2570.9,0.30222817]
[1730862017558,3.92736978,2571.6,2571.0,0.30222817]
[1730862017559,4.78884876,2571.6,2571.0,0.30222817]
[1730862017796,3.88895,2571.4,2570.8,0.30222817]
[1730862018101,0.03868978,2571.5,2570.8,0.30222817]
[1730862018456,0.799,2571.7,2570.9,0.07778537]
[1730862018457,0.83768978,2571.7,2570.9,0.07778537]
[1730862018683,0.01,2572.3,2570.8,0.85765127]
[1730862018684,0.799,2572.2,2571.0,0.54212817]
[1730862018880,0.799,2572.5,2571.6,0.2399]
[1730862019197,0.799,2572.5,2571.6,1.25501017]
[1730862019355,0.799,2572.5,2571.6,35.2399]
[1730862019558,0.799,2572.5,2571.7,0.30222817]
[1730862019559,3.88744,2572.4,2571.7,0.30222817]
[1730862019754,0.799,2572.5,2571.7,0.30222817]
[1730862019956,3.88756,2572.4,2571.7,0.30222817]
[1730862020156,3.88756,2572.4,2571.4,0.30222817]
[1730862020394,3.88756,2572.4,2571.6,3.0]
[1730862020597,3.88756,2572.4,2571.7,0.30222817]
[1730862020799,3.88756,2572.4,2571.2,0.2399]
[1730862020800,7.77529,2572.3,2571.2,0.2399]
[1730862021099,3.88757,2572.3,2571.2,0.2399]
[1730862021302,0.809,2572.5,2571.2,0.2399]
[1730862021303,3.8879,2572.1,2571.2,0.2399]
[1730862021597,3.8879,2572.1,2571.0,0.30299548]
[1730862021598,0.01,2571.7,2571.0,0.30299548]
[1730862021899,0.01,2571.7,2570.8,0.5554231]
[1730862021900,3.88909,2571.3,2570.8,0.5554231]
[1730862022227,3.88872,2571.6,2571.0,0.5554231]
[1730862022397,1.323717,2571.7,2571.0,0.5554231]
[1730862022559,0.799,2571.7,2571.0,0.5554231]
[1730862022902,3.88739,2572.5,2571.0,0.5554231]
[1730862022903,0.799,2572.3,2571.2,3.8892]
[1730862023055,0.799,2572.3,2571.3,0.30299548]
[1730862023056,3.88783,2572.2,2571.3,0.30299548]
[1730862023260,0.799,2572.3,2571.4,0.07776859]
[1730862023475,0.799,2572.3,2571.3,3.30299548]
[1730862023680,0.799,2572.3,2571.4,0.30299548]
[1730862024206,0.799,2572.3,2571.3,0.71589848]
[1730862024207,4.68659,2572.3,2571.3,0.71589848]
[1730862024516,4.68659,2572.3,2571.4,3.0]
[1730862024517,0.799,2572.3,2571.4,3.0]
[1730862024725,0.799,2572.3,2571.5,0.4245657]
[1730862024895,0.799,2572.3,2571.6,0.34245657]
[1730862025093,0.799,2572.3,2571.5,0.4245657]
[1730862025422,3.88772,2572.2,2571.3,0.6]
[1730862025628,3.88827,2571.9,2571.3,0.6]
[1730862026182,3.88848,2571.7,2571.3,0.6]
[1730862026406,3.88827,2571.9,2571.3,0.6]
[1730862026879,4.665893,2571.9,2571.3,0.6]
[1730862027278,4.665873,2571.9,2571.3,0.6]
[1730862027481,0.799,2572.3,2571.3,0.6]
[1730862027482,3.8879,2572.1,2571.3,0.6]
[1730862027778,4.68663,2572.3,2571.3,0.6]
[1730862027779,4.68663,2572.3,2571.3,3.6]
[1730862027984,4.68663,2572.3,2571.4,1.23993747]
[1730862028623,3.89682,2572.8,2571.4,1.23993747]
[1730862028624,0.8509397,2572.9,2571.5,0.2399]
[1730862028786,0.0519397,2572.9,2571.8,0.2399]
[1730862028985,0.0519397,2572.9,2571.9,0.59865919]
[1730862029292,0.0519397,2572.9,2572.2,0.2399]
[1730862029484,3.9387097,2572.9,2572.3,0.07773434]
[1730862029679,3.88737,2572.5,2572.2,0.42422661]
[1730862029929,0.0519397,2572.9,2571.8,0.2399]
[1730862030083,0.0519397,2572.9,2571.9,0.59865919]
[1730862030284,3.88684,2572.8,2572.0,3.0]
[1730862030521,3.88727,2572.5,2572.1,0.42419912]
[1730862030725,3.88768,2572.3,2571.9,0.42419912]
[1730862030944,3.88768,2572.3,2571.5,0.59865919]
[1730862030945,0.7529,2572.5,2571.5,0.2399]
[1730862031230,3.88874,2571.6,2571.3,0.6]
[1730862031432,3.88833,2571.8,2571.3,0.6]
[1730862031588,3.88867,2571.6,2571.3,0.6]
[1730862032209,3.88893,2571.4,2571.3,0.6]
[1730862032917,3.88878,2571.5,2571.3,0.6]
[1730862033128,3.88849,2571.7,2571.3,0.6]
[1730862033332,3.88863,2571.6,2571.3,0.6]
[1730862033537,3.88845,2571.8,2571.3,0.6]
[1730862034035,3.88855,2571.7,2571.3,0.6]
[1730862034321,3.89014,2570.6,2570.5,0.30266487]
[1730862034526,3.89014,2570.6,2569.6,0.42429175]
[1730862034871,6.94036095,2570.8,2569.5,0.30266487]
[1730862035127,3.89069,2570.3,2569.6,0.30266487]
[1730862035300,3.89034,2570.5,2569.7,0.30266487]
[1730862035497,3.89034,2570.5,2569.8,0.30266487]
[1730862035715,3.89071,2570.3,2569.5,0.30266487]
[1730862035919,3.89034,2570.5,2569.6,0.30266487]
[1730862036099,3.89034,2570.5,2569.7,0.30266487]
[1730862036299,3.89057,2570.4,2569.8,0.30266487]
[1730862036509,3.89057,2570.4,2569.5,0.30266487]
[1730862036713,3.89057,2570.4,2569.6,0.30266487]
[1730862036920,3.89057,2570.4,2569.7,0.30266487]
[1730862037097,3.89034,2570.5,2569.4,0.36152688]
[1730862037098,3.89034,2570.5,2569.4,0.36154403]
[1730862037308,3.89054,2570.4,2569.5,0.30522435]
[1730862037499,3.88969,2570.9,2569.9,3.0]
[1730862037695,3.88938,2571.1,2570.2,0.2399]
[1730862037899,3.88896,2571.4,2570.4,0.2399]
[1730862038242,3.8884,2571.8,2570.6,0.2399]
[1730862038538,0.7529,2572.0,2570.6,0.2399]
[1730862038539,3.88803,2572.0,2570.8,0.55]
[1730862038755,3.88734,2572.5,2571.0,3.0]
[1730862038756,3.88843,2571.8,2571.0,3.0]
[1730862038904,0.7529,2572.3,2571.1,0.42700536]
[1730862038905,3.88879,2571.5,2571.1,0.42700536]
[1730862039107,3.88865,2571.6,2571.2,0.30538308]
[1730862039302,3.88895,2571.4,2571.0,0.30538308]
[1730862039545,3.88895,2571.4,2571.1,0.30538308]
[1730862039750,7.70326095,2572.3,2571.0,0.30538308]
[1730862039922,3.88867,2571.6,2571.1,0.30538308]
[1730862040105,3.88839,2571.8,2570.9,0.54528308]
[1730862040310,3.88798,2572.1,2571.2,0.2399]
[1730862040635,3.88798,2572.1,2570.7,0.01]
[1730862040636,3.88777,2572.2,2571.4,0.2399]
[1730862040837,3.88797,2572.1,2571.4,0.2399]
[1730862041041,4.63991,2572.7,2571.4,3.54477344]
[1730862041042,3.88804,2572.0,2571.4,3.54477344]
[1730862041215,3.88859,2571.7,2571.5,0.30487344]
[1730862041414,0.388804,2572.0,2571.1,0.2399]
[1730862041415,3.88862,2571.6,2571.1,0.2399]
[1730862041618,3.88862,2571.6,2571.1,0.62254758]
[1730862041619,3.88894,2571.4,2571.1,0.62254758]
[1730862041921,3.88894,2571.4,2571.1,0.2399]
[1730862042271,1.141704,2572.0,2571.1,0.2399]
[1730862042411,1.141704,2572.0,2570.9,0.42643548]
[1730862042412,3.88947,2571.1,2570.9,0.42643548]
[1730862042611,3.88947,2571.1,2570.8,0.2399]
[1730862042938,3.88913,2571.3,2570.9,0.07778768]
[1730862043127,3.88925,2571.2,2570.8,0.2399]
[1730862043312,3.88913,2571.3,2570.8,0.2399]
[1730862043706,3.88878,2571.5,2570.8,0.2399]
[1730862043944,3.88878,2571.5,2570.9,0.0777788]
[1730862044354,3.88878,2571.5,2570.9,0.30507119]
[1730862044559,3.88912,2571.3,2570.9,0.30507119]
[1730862044847,3.88955,2571.0,2570.8,0.2399]
[1730862045422,3.88968,2570.9,2570.8,0.2399]
[1730862046049,3.88955,2571.0,2570.6,0.42667403]
[1730862046292,3.88908,2571.3,2570.6,0.42667403]
[1730862046435,3.88997,2570.8,2570.6,0.30507119]
[1730862046775,3.88997,2570.8,2570.6,0.42667204]
[1730862046986,3.88996,2570.8,2570.5,0.2399]
[1730862047137,3.89014,2570.6,2570.5,0.54497119]
[1730862047331,3.89011,2570.7,2570.5,0.2399]
[1730862047775,3.88996,2570.8,2570.5,0.2399]
[1730862048579,3.89014,2570.6,2570.5,0.2399]
[1730862048738,3.89014,2570.6,2570.2,0.2399]
[1730862048943,3.89032,2570.5,2570.2,0.54535154]
[1730862049264,3.88959,2571.0,2570.3,0.07780218]
[1730862049445,3.88959,2571.0,2570.2,0.2399]
[1730862049782,3.88959,2571.0,2570.3,0.30545154]
[1730862050075,3.88977,2570.9,2570.4,0.07778894]
[1730862050277,3.88985,2570.8,2570.4,0.83662773]
[1730862050579,3.88977,2570.9,2570.4,0.07778894]
[1730862050887,5.186687,2571.4,2570.1,0.4270699]
[1730862050888,3.89074,2570.2,2570.1,0.4270699]
[1730862051186,3.89074,2570.2,2569.9,0.2399]
[1730862051326,3.89092,2570.1,2569.9,0.2399]
[1730862051779,3.89064,2570.3,2569.9,0.2399]
[1730862051944,7.78135,2570.3,2569.9,0.2399]
[1730862052142,3.89098,2570.1,2569.9,0.2399]
[1730862052531,3.89066,2570.3,2569.9,0.2399]
[1730862052731,3.89028,2570.6,2570.0,0.55]
[1730862052931,3.89026,2570.6,2570.0,0.55]
[1730862053132,3.89044,2570.4,2570.0,0.55]
[1730862053480,3.89026,2570.6,2570.0,0.55]
[1730862054780,3.88989,2570.8,2570.0,0.55]
[1730862055077,3.89014,2570.7,2570.1,0.2399]
[1730862055250,3.89014,2570.7,2570.1,0.66168184]
[1730862055569,3.89014,2570.7,2570.2,3.55]
[1730862055775,0.8262,2571.2,2570.3,0.4279132]
[1730862055998,3.89012,2570.7,2570.1,0.2399]
[1730862056147,3.89012,2570.7,2570.2,0.0777996]
[1730862056355,7.77953,2570.9,2570.1,0.2399]
[1730862056651,3.88971,2570.9,2570.1,0.2399]
[1730862056862,3.88985,2570.8,2570.1,0.2399]
[1730862057177,3.88971,2570.9,2570.2,0.55]
[1730862057551,3.88971,2570.9,2570.3,0.2399]
[1730862057748,3.88971,2570.9,2570.4,0.07779329]
[1730862058100,3.88971,2570.9,2570.3,0.2399]
[1730862058265,3.88995,2570.8,2570.3,0.71976469]
[1730862058448,3.88971,2570.9,2570.3,0.71976469]
[1730862058647,3.88956,2571.0,2570.4,0.55]
[1730862059365,3.88969,2570.9,2570.3,0.71976469]
[1730862059566,3.88969,2570.9,2570.3,1.02584659]
[1730862059760,3.88944,2571.1,2570.4,0.55]
[1730862059974,3.88944,2571.1,2570.4,0.8560819]
[1730862060187,3.88944,2571.1,2570.5,0.3060819]
[1730862060392,3.88982,2570.9,2570.5,0.88527288]
[1730862060593,3.88982,2570.9,2570.5,0.12160632]
[1730862060793,3.88957,2571.0,2570.5,0.07779323]
[1730862061169,0.852919,2571.8,2570.6,0.7899]
[1730862061352,0.8186,2571.9,2570.7,0.3060819]
[1730862061353,3.8891,2571.3,2570.7,0.3060819]
[1730862061670,3.8891,2571.3,2570.8,0.55]
[1730862061871,3.88934,2571.2,2570.7,3.3060819]
[1730862062051,3.88967,2571.0,2570.8,0.42768822]
[1730862062254,3.88967,2571.0,2570.6,0.2399]
[1730862062255,3.88968,2570.9,2570.6,0.2399]
[1730862062451,3.88967,2571.0,2570.6,0.2399]
[1730862062755,3.88993,2570.8,2570.6,0.2399]
[1730862062970,3.88962,2571.0,2570.6,0.2399]
[1730862063366,3.8893,2571.2,2570.6,0.2399]
[1730862063367,3.88923,2571.2,2570.6,0.2399]
[1730862063599,3.88953,2571.0,2570.6,0.2399]
[1730862063806,3.88953,2571.0,2570.7,0.07778984]
[1730862063984,0.8186,2571.3,2570.7,0.07778984]
[1730862063985,3.88914,2571.3,2570.7,0.07778984]
[1730862064188,0.8186,2572.1,2570.8,0.2399]
[1730862064388,3.88799,2572.1,2571.2,3.0]
[1730862064589,3.88733,2572.5,2571.5,4.43877]
[1730862064773,1.21811564,2572.6,2571.8,0.55]
[1730862065103,1.21811564,2572.6,2572.0,0.2399]
[1730862065402,1.21811564,2572.6,2572.4,0.55]
[1730862065907,1.62415419,2572.7,2572.5,0.7899]
[1730862066058,1.62415419,2572.7,2572.6,0.55]
[1730862066479,1.62415419,2572.7,2572.5,0.2399]
[1730862066821,1.62415419,2572.7,2572.5,1.01497282]
[1730862066822,1.64346559,2572.7,2572.5,1.01497282]
[1730862067117,1.64346559,2572.7,2572.6,0.2399]
[1730862067491,1.64346559,2572.7,2572.6,0.66860811]
[1730862068016,3.9490887,2573.5,2572.7,3.2399]
[1730862068017,0.0633187,2573.5,2572.7,3.2399]
[1730862068174,0.0633187,2573.5,2573.1,0.2399]
[1730862068373,0.0633187,2573.5,2573.2,0.0777047]
[1730862068616,0.0633187,2573.5,2572.9,3.30590595]
[1730862068617,0.0633187,2573.5,2573.3,0.2399]
[1730862069028,0.0633187,2573.5,2573.4,0.07770317]
[1730862069231,0.0633187,2573.5,2573.3,0.2399]
[1730862069396,0.0633187,2573.5,2573.4,0.0777072]
[1730862069598,0.0633187,2573.5,2573.4,3.07770707]
[1730862069827,0.0633187,2573.5,2573.4,0.75915907]
[1730862070134,0.0633187,2573.5,2573.4,8.19505907]
[1730862070362,7.00367965,2574.8,2573.8,3.2399]
[1730862070635,7.00367965,2574.8,2573.8,0.2399]
[1730862070803,0.0633187,2574.8,2574.0,3.0]
[1730862071140,0.0633187,2574.8,2573.6,0.01]
[1730862071141,6.94036095,2574.1,2573.5,0.2399]
[1730862071348,0.8186,2574.0,2573.1,0.54422102]
[1730862071548,0.8186,2574.0,2573.1,0.2399]
[1730862071549,6.94036095,2573.5,2573.1,0.2399]
[1730862071839,6.94036095,2573.5,2572.7,0.42593092]
[1730862071840,6.94036095,2573.5,2572.7,0.2399]
[1730862072003,3.88677,2572.9,2572.3,0.43426101]
[1730862072208,3.88683,2572.8,2572.3,0.2399]
[1730862072390,3.88677,2572.9,2572.3,0.2399]
[1730862072885,6.94036095,2573.0,2572.3,0.2399]
[1730862073235,6.94036095,2573.0,2572.4,0.07773484]
[1730862073412,10.82699095,2573.0,2572.3,0.2399]
[1730862073598,6.94036095,2573.0,2572.4,0.58532691]
[1730862074016,6.94036095,2573.5,2572.5,0.47126669]
[1730862074200,6.94036095,2573.5,2572.7,3.2399]
[1730862074402,10.82612095,2573.5,2572.7,0.2399]
[1730862074621,6.94036095,2573.5,2572.7,0.2399]
[1730862074787,6.94036095,2573.5,2572.7,4.50717189]
[1730862074990,6.94036095,2573.5,2572.8,0.30473691]
[1730862075533,10.82623095,2573.5,2572.7,1.38555092]
[1730862075840,10.82613095,2573.5,2572.8,0.48931439]
[1730862076002,6.94036095,2573.5,2572.8,0.48931439]
[1730862076332,10.82624095,2573.5,2572.8,0.48931439]
[1730862076489,3.88632,2573.2,2572.7,1.08094965]
[1730862076689,3.88632,2573.2,2572.8,0.07772581]
[1730862076892,10.82697095,2573.0,2572.4,7.776]
[1730862077098,10.82697095,2573.0,2572.5,0.07773081]
[1730862077099,6.94036095,2573.0,2572.5,0.07773081]
[1730862077290,6.94036095,2573.0,2572.4,0.50759294]
[1730862078344,6.94036095,2573.0,2572.3,0.305282]
[1730862078345,6.94036095,2572.5,2572.2,0.545182]
[1730862078492,3.88756,2572.4,2571.9,0.29822524]
[1730862078710,3.88757,2572.3,2571.9,0.05832524]
[1730862078939,6.94036095,2572.0,2571.5,0.2399]
[1730862079235,3.88866,2571.6,2571.2,0.2399]
[1730862079934,3.88837,2571.8,2571.2,0.2399]
[1730862080236,3.88837,2571.8,2571.3,0.07777239]
[1730862080988,10.82839095,2572.0,2571.3,0.07777239]
[1730862081194,6.94036095,2572.0,2571.4,0.53675961]
[1730862081432,6.94036095,2572.0,2571.2,3.54591079]
[1730862081593,10.82841095,2572.0,2571.3,1.04946892]
[1730862081794,3.88834,2571.8,2571.3,0.74351908]
[1730862082015,3.88864,2571.6,2571.2,0.36145765]
[1730862082218,6.94036095,2572.0,2571.2,0.36145765]
[1730862082219,6.94036095,2571.5,2571.2,0.2399]
[1730862082420,3.8882,2571.9,2571.2,0.2399]
[1730862082621,3.88847,2571.7,2571.2,0.71866078]
[1730862082934,3.88843,2571.8,2571.2,0.2399]
[1730862083232,3.88866,2571.6,2571.2,0.2399]
[1730862083394,6.94036095,2572.0,2571.2,0.2399]
[1730862083593,3.88835,2571.8,2571.2,0.2399]
[1730862083799,3.88858,2571.7,2571.2,0.2399]
[1730862084334,6.94036095,2571.5,2570.9,0.66741222]
[1730862084505,6.94036095,2571.5,2571.0,0.87422718]
[1730862085056,6.94036095,2571.5,2571.1,0.64205446]
[1730862085427,6.94036095,2571.5,2571.1,0.9480043]
[1730862085741,6.94036095,2571.5,2571.1,0.64205446]
[1730862085941,10.82841095,2572.0,2571.1,0.56427819]
[1730862086097,10.82841095,2572.0,2571.2,0.07776735]
[1730862086303,3.88843,2571.8,2571.2,1.1771241]
[1730862086499,3.88843,2571.8,2571.1,0.30594984]
[1730862086830,7.77689,2571.8,2571.0,0.30594984]
[1730862087033,3.8888,2571.5,2571.0,0.30594984]
[1730862087347,3.88868,2571.6,2571.0,1.49476264]
[1730862087599,10.82926095,2571.5,2571.0,1.49476264]
[1730862087741,10.82926095,2571.5,2571.0,0.07778258]
[1730862088552,10.82926095,2571.5,2570.9,0.2399]
[1730862088553,3.88895,2571.4,2570.9,0.2399]
[1730862088753,10.82926095,2571.5,2570.9,0.2399]
[1730862088993,3.88811,2572.0,2571.0,0.07778263]
[1730862088994,3.88846,2571.8,2571.0,0.07778263]
[1730862089279,3.88861,2571.7,2571.0,0.8618896]
[1730862089490,3.88831,2571.9,2571.0,0.55]
[1730862089670,6.94036095,2572.0,2571.1,6.88927]
[1730862089843,6.94036095,2572.0,2571.2,1.43981789]
[1730862090443,3.88827,2571.9,2571.2,1.43981789]
[1730862090670,3.88841,2571.8,2571.1,0.30694989]
[1730862090855,10.82848095,2572.0,2571.3,0.07776471]
[1730862091160,3.88818,2571.9,2571.3,0.07776471]
[1730862091393,6.94036095,2572.0,2571.2,0.30694989]
[1730862091394,3.88838,2571.8,2571.2,0.30694989]
[1730862091779,3.88838,2571.8,2571.3,0.07777134]
[1730862092180,10.82839095,2572.0,2571.3,0.07777134]
[1730862092580,3.88833,2571.8,2571.2,0.30703377]
[1730862092782,3.88833,2571.8,2570.9,0.2399]
[1730862092783,3.88833,2571.8,2570.9,4.43659377]
[1730862092985,3.88833,2571.8,2571.0,3.30703377]
[1730862093215,0.8186,2572.1,2570.9,4.12956]
[1730862093216,3.88917,2571.3,2571.1,0.30703377]
[1730862093535,3.88917,2571.3,2570.6,0.54693377]
[1730862093536,3.88973,2570.9,2570.6,0.54693377]
[1730862093681,3.88973,2570.9,2570.5,0.0583602]
[1730862094021,6.94036095,2571.0,2569.8,4.71534654]
[1730862094022,3.89079,2570.2,2569.9,0.42864015]
[1730862094222,3.88993,2570.8,2569.8,0.82408654]
[1730862094223,3.89105,2570.0,2569.8,0.82408654]
[1730862094532,3.89225,2569.3,2569.1,0.4286724]
[1730862094749,3.89225,2569.3,2568.9,0.25294312]
[1730862094750,6.94036095,2569.1,2568.9,0.05837291]
[1730862095061,3.89256,2569.0,2568.9,0.05837291]
[1730862095240,3.89256,2569.0,2568.3,0.0633187]
[1730862095241,3.89305,2568.7,2568.3,0.0633187]
[1730862095534,8.2667153,2569.1,2568.3,0.0633187]
[1730862095535,6.94036095,2568.4,2568.3,0.0633187]
[1730862095884,6.74533802,2568.4,2568.3,0.0633187]
[1730862096622,6.94036095,2568.9,2568.3,0.60891885]
[1730862097078,3.89289,2568.8,2568.3,0.0633187]
[1730862097278,6.94036095,2568.9,2568.3,0.0633187]
[1730862098329,6.94036095,2568.9,2567.2,3.89521]
[1730862098330,3.89382,2568.2,2567.3,0.54560015]
[1730862098511,6.94036095,2567.8,2567.2,0.2399]
[1730862098844,6.94036095,2567.8,2567.2,1.24175207]
[1730862099025,6.94036095,2567.8,2567.3,0.54560015]
[1730862099443,6.94036095,2567.8,2567.3,0.62349476]
[1730862099585,6.94036095,2567.8,2567.3,0.54560015]
[1730862099782,0.7578,2567.7,2567.1,0.05842289]
[1730862100028,3.89537,2567.2,2567.1,0.056563]
[1730862100235,6.94036095,2567.3,2567.1,0.056563]
[1730862101283,6.94036095,2567.3,2565.9,0.2499]
[1730862101284,0.7578,2566.4,2565.6,3.9729705]
[1730862101483,0.7578,2566.4,2565.7,0.39729705]
[1730862101735,0.7578,2566.4,2565.6,0.0754005]
[1730862102232,6.94036095,2566.5,2565.7,0.2965]
[1730862102415,6.94036095,2566.5,2565.7,4.19407]
[1730862102677,7.69816095,2565.9,2565.6,0.0754005]
[1730862102983,0.01,2566.3,2565.6,0.0754005]
[1730862102984,0.7578,2566.3,2565.6,0.0754005]
[1730862103543,0.7578,2566.3,2565.7,3.89754]
[1730862103742,0.7578,2567.4,2565.8,4.30462405]
[1730862103958,0.7578,2567.4,2566.5,3.89635]
[1730862104159,0.7578,2567.4,2566.6,0.389635]
[1730862104373,0.7578,2567.4,2566.4,3.0]
[1730862104374,4.65294,2567.4,2566.4,3.0]
[1730862104684,4.65294,2567.4,2566.4,6.89638]
[1730862104685,0.7578,2567.4,2566.4,6.89638]
[1730862104845,0.7578,2567.4,2566.5,3.689638]
[1730862105451,0.7578,2567.4,2566.5,0.689638]
[1730862106296,0.7578,2567.4,2566.5,4.585988]
[1730862106516,0.8279,2568.0,2567.2,3.89527]
[1730862106678,0.8279,2568.0,2566.8,3.0]
[1730862106679,0.8279,2568.5,2567.4,6.89492]
[1730862106862,0.8279,2568.5,2567.7,3.89451]
[1730862107186,3.89247,2569.1,2567.9,6.89411]
[1730862107187,0.8279,2569.1,2567.9,6.89411]
[1730862107389,0.8279,2569.1,2568.5,3.0]
[1730862107602,0.8279,2569.1,2567.5,0.2965]
[1730862107603,0.01,2568.8,2567.5,0.2965]
[1730862107792,0.01,2569.0,2567.7,3.0]
[1730862108013,7.76826095,2569.1,2567.8,0.3]
[1730862108302,0.8279,2569.1,2568.0,3.89396]
[1730862108504,0.8279,2569.1,2568.0,3.0]
[1730862108997,7.76826095,2569.1,2567.7,3.89453]
[1730862109302,3.90283,2568.9,2567.8,3.0]
[1730862109624,0.55,2569.0,2568.0,3.89406]
[1730862109899,12.13271795,2569.1,2567.8,3.89437]
[1730862109900,7.76826095,2569.1,2568.4,3.89335]
[1730862110164,0.8279,2569.9,2568.5,0.46719938]
[1730862110325,0.8279,2569.9,2569.0,3.89243]
[1730862110616,0.8279,2569.9,2568.6,3.89317]
[1730862110771,0.8279,2569.9,2568.7,3.89301]
[1730862110967,0.8279,2569.9,2568.7,0.68334013]
[1730862111168,0.8279,2569.9,2568.8,0.55]
[1730862111475,0.8279,2569.9,2569.2,3.89221]
[1730862111695,0.8279,2569.9,2568.9,3.0]
[1730862111870,0.8279,2569.9,2569.2,3.89218]
[1730862112065,0.8279,2569.9,2569.1,3.8924]
[1730862112294,0.8279,2569.9,2569.0,0.3]
[1730862112498,0.8279,2569.9,2568.7,0.68334013]
[1730862112704,0.8279,2569.9,2568.9,3.89259]
[1730862112908,0.8279,2569.9,2569.2,3.89224]
[1730862113115,6.95036095,2570.6,2569.4,3.89193]
[1730862113116,0.8279,2570.4,2569.4,3.89193]
[1730862113266,0.8279,2570.4,2569.7,3.89149]
[1730862113469,0.8279,2570.4,2569.8,3.8913]
[1730862113783,0.8279,2570.8,2569.9,3.89115]
[1730862113997,0.8279,2570.8,2570.0,3.89097]
[1730862114530,0.8279,2570.8,2570.1,3.89088]
[1730862115083,0.8279,2570.8,2569.9,3.89116]
[1730862115282,0.8279,2570.8,2570.0,3.89103]
[1730862115523,0.8279,2570.8,2570.1,0.778219]
[1730862116021,0.8279,2570.8,2569.4,0.2965]
[1730862116022,4.71775,2570.8,2569.4,0.2965]
[1730862116232,4.71775,2570.8,2569.5,3.8918]
[1730862116797,4.71775,2570.8,2569.1,3.89233]
[1730862116798,0.8279,2570.2,2568.5,0.695835]
[1730862117126,0.8279,2570.2,2569.4,3.89185]
[1730862117337,0.8279,2570.2,2569.6,3.89163]
[1730862117833,0.8279,2570.7,2569.7,3.89139]
[1730862118135,0.8279,2570.7,2569.9,3.89119]
[1730862118489,0.8279,2570.7,2569.9,4.7199922]
[1730862118916,3.89034,2570.5,2569.4,0.2965]
[1730862119226,0.8279,2570.7,2569.4,0.60016468]
[1730862119386,3.89051,2570.4,2569.4,0.30366468]
[1730862119586,0.389051,2570.3,2569.3,3.89197]
[1730862119785,4.279671,2570.3,2569.3,3.89197]
[1730862120231,7.50036095,2570.6,2569.5,3.89179]
[1730862120232,3.89037,2570.5,2569.5,3.89179]
[1730862120533,10.83055095,2570.6,2569.1,0.50534201]
[1730862120534,6.95036095,2570.6,2569.1,4.39774201]
[1730862120832,5.0571151,2570.5,2569.5,3.89169]
[1730862120982,3.89045,2570.4,2569.5,3.89169]
[1730862121182,5.0571151,2570.5,2569.5,3.89169]
[1730862121385,5.0571151,2570.5,2569.6,4.19572806]